Cogmind - Beta 10.2 @@@ ROGUE MODE // 2021.01.16 @ 15:04:33 Player: Perseus Result: Destroyed by DAS Turret with DAS Cannon Performance ------------- Evolutions (1) 500 Regions Visited (5) 1000 Robots Destroyed (60) 300 Value Destroyed (1069) 1069 Prototype IDs (40) 800 Alien Tech Used (0) 0 Bonus (320) 320 TOTAL SCORE: 3989 Bonus ------- High Alert Combat Kills 21 Follower Combat Kills 50 Aligned with FarCom 300 Friendly Fire -51 Cogmind --------- Core Integrity 0/400 Matter 290/300 Energy 91/100 System Corruption 0% Temperature Cool (0) Movement Walking (150) Ox1 Location -9/Exiles Parts ------- > --- POWER (1) -------- (None) > --- PROPULSION (3) --- Aluminum Leg > --- UTILITY (3) ------ Large Storage Unit > --- WEAPON (2) ------- (None) > --- INVENTORY (10) --- Light Nuclear Core Large Storage Unit Improved Signal Interpreter Improved Terrain Scanner Grenade Launcher Heavy Explosive Trap Heavy Explosive Trap Peak State ------------ > --- POWER ------------ Light Deuterium Engine > --- PROPULSION ------- Aluminum Leg Aluminum Leg Improved Aluminum Leg > --- UTILITY ---------- Large Storage Unit Large Storage Unit Core Shielding > --- WEAPON ----------- Heavy Assault Rifle Heavy Battle Rifle > --- INVENTORY -------- Light Nuclear Core Aluminum Leg Aluminum Leg Improved Heat Sink Improved Signal Interpreter Improved Terrain Scanner Small Laser Beam Rifle Particle Gun Grenade Launcher Heavy Explosive Trap Heavy Explosive Trap Deploy-a-Sentry [Rating: 19] Favorites ----------- Power Ion Engine Engine Ion Engine Power Core Light Nuclear Core Propulsion Aluminum Leg Leg Aluminum Leg Utility Large Storage Unit Device Improved Terrain Scanner Storage Large Storage Unit Protection Core Shielding Weapon Small Laser Energy Gun Small Laser Ballistic Gun Assault Rifle Launcher Grenade Launcher Special Melee Weapon Datajack Build | -11 -10 -10 -9 -9 -9 ------- Run | Scr Mat Min Mat Min Exi Slots Evolved 2 | . . . 2 . . Power . | . . . . . . Propulsion 1 | . . . 1 . . Utility 1 | . . . 1 . . Weapon . | . . . . . . Parts Attached 57 | 1 9 11 9 10 17 Power 5 | . . 2 . 2 1 Engine 4 | . . 2 . 2 . Core 1 | . . . . . 1 Reactor . | . . . . . . Propulsion 12 | . . 3 1 4 4 Treads . | . . . . . . Leg 12 | . . 3 1 4 4 Wheel . | . . . . . . Hover . | . . . . . . Flight . | . . . . . . Utility 10 | 1 2 1 2 3 1 Device 4 | 1 . . 1 1 1 Storage 4 | . 2 . 1 1 . Processor . | . . . . . . Hackware . | . . . . . . Protection 2 | . . 1 . 1 . Artifact . | . . . . . . Weapon 30 | . 7 5 6 1 11 Energy Gun 12 | . 3 1 2 1 5 Energy Cannon . | . . . . . . Ballistic Gun 10 | . 1 2 3 . 4 Ballistic Cannon . | . . . . . . Launcher 7 | . 3 2 1 . 1 Special Weapon . | . . . . . . Impact Weapon . | . . . . . . Slashing Weapon . | . . . . . . Piercing Weapon . | . . . . . . Special Melee Weapon 1 | . . . . . 1 Unidentified Prototypes . | . . . . . . Parts Lost 21 | . 1 . . 3 17 Power 2 | . . . . . 2 Propulsion 8 | . . . . 2 6 Utility 2 | . . . . . 2 Weapon 9 | . 1 . . 1 7 Highest Loss Streak 10 | . 1 . . 3 10 Average Slot Usage (%) 98 | . 99 100 94 99 96 Engine 11 | . 14 14 11 11 9 Leg 30 | . 28 28 29 32 32 Device 4 | . 14 3 9 3 1 Storage 16 | . 14 14 11 18 20 Protection 9 | . . 10 11 10 9 Energy Gun 11 | . 17 3 10 14 11 Ballistic Gun 11 | . 8 23 10 7 8 Naked Turns . | . . . . . . Heaviest Build 45 | 12 24 28 28 43 45 Greatest Support 33 | 20 20 20 30 33 33 Greatest Overweight (x) 3 | . 1 1 1 3 1 Average Overweight (x) . | . . 1 . . . Largest Inventory Capacity 16 | 6 10 10 10 16 16 Average Capacity 12 | 6 7 10 10 14 15 Most Carried 16 | 6 10 10 10 16 16 Average Carried 11 | 5 6 9 9 13 12 Final Capacity 16 | 6 10 10 10 16 10 Final Carried 16 | 6 10 10 10 16 7 Class Distribution -------------------- 69% | Scavenger-Mutant 30% | Mutant Dominant Class ---------------- Mutant | -10/Materials Mutant | -10/Mines Scavenger-Mutant | -9/Materials Scavenger-Mutant | -9/Mines Scavenger-Mutant | -9/Exiles Resources | -11 -10 -10 -9 -9 -9 ----------- Run | Scr Mat Min Mat Min Exi Matter Collected 1438 | 210 155 499 181 226 167 Remotely . | . . . . . . Salvage Created 1557 | 180 294 533 304 246 . Parts 128 | 20 23 36 38 11 . Haulers Intercepted 2 | . 1 . 1 . . Recyclers Shooed 3 | . 1 1 1 . . Parts Field Recycled . | . . . . . . Retrieved Matter . | . . . . . . Parts Self-Destructed . | . . . . . . Prevented . | . . . . . . Kills | -11 -10 -10 -9 -9 -9 ------- Run | Scr Mat Min Mat Min Exi Combat Hostiles Destroyed 38 | . 9 10 10 8 1 Guns 21 | . 2 4 6 8 1 AOE 17 | . 7 6 4 . . Classes Destroyed 12 | 2 3 2 3 2 . Worker 3 | . . 1 . 2 . Builder 1 | . . . 1 . . Tunneler 11 | 5 . 4 1 1 . Hauler 2 | . 1 . 1 . . Recycler 6 | 1 2 3 . . . Operator 1 | . . . 1 . . Watcher 3 | . 2 . 1 . . Swarmer 23 | . 9 6 8 . . Grunt 7 | . . 4 1 2 . Duelist 1 | . . . . 1 . Sentry 1 | . . . 1 . . Assembled 5 | . . . . 5 . Best Kill Streak 9 | 4 9 4 6 2 1 Combat Bots Only 6 | . 6 3 5 2 1 Max Kills in Single Turn 4 | 2 4 2 3 2 1 Gunslinging 1 | . . . . 1 . Exploded 4 | . 4 2 3 . . Melee . | . . . . . . Uniques/NPCs Destroyed 3 | . . . . . 3 EX-DEC (-9/Exiles) 8R-AWN (-9/Exiles) EX-BIN (-9/Exiles) Combat | -11 -10 -10 -9 -9 -9 -------- Run | Scr Mat Min Mat Min Exi Damage Taken 2594 | . 258 178 229 359 1570 Core 560 | . 81 30 . 46 403 Absorbed by Shields . | . . . . . . Core Remaining (%) 77 | 100 . 55 . . . Volleys Fired 198 | 9 26 55 31 46 31 Largest 2 | 2 2 2 2 2 2 Hottest 105 | 80 80 60 76 96 105 Shots Fired 348 | 18 45 78 56 90 61 Gun 329 | 18 34 72 54 90 61 Cannon . | . . . . . . Launcher 19 | . 11 6 2 . . Special . | . . . . . . Kinetic 163 | . 8 65 29 41 20 Thermal 166 | 18 26 7 25 49 41 Explosive 19 | . 11 6 2 . . Electromagnetic . | . . . . . . Robot Hit Streak 9 | 5 6 7 6 9 9 Robot Miss Streak 5 | 2 2 3 2 5 2 Penetration Max . | . . . . . . Secondary Targets 4 | . . . 3 1 . Max Gunslinging Chain 1 | . . . 1 1 . Shots Hit Robots 201 | 13 26 28 32 52 50 Core Hits 99 | 7 22 24 20 17 9 Critical Hits 1 | . . 1 . . . Critical Kills 1 | . . 1 . . . Critical Parts Destroyed . | . . . . . . Melee Attacks 4 | . . . . . 4 Impact . | . . . . . . Slashing . | . . . . . . Piercing . | . . . . . . Sneak Attacks 4 | . . . . . 4 Combat Hostiles . | . . . . . . Follow-up Attacks . | . . . . . . Damage Inflicted 3594 | 164 742 803 618 620 647 Guns 2525 | 164 237 449 408 620 647 Cannons . | . . . . . . Explosions 1069 | . 505 354 210 . . Melee . | . . . . . . Ramming . | . . . . . . Kinetic 1124 | . 43 372 172 271 266 Thermal 1401 | 164 194 77 236 349 381 Explosive 1069 | . 505 354 210 . . Electromagnetic . | . . . . . . Impact . | . . . . . . Slashing . | . . . . . . Piercing . | . . . . . . Highest Corruption . | . . . . . . Average Corruption . | . . . . . . Corruption Purged . | . . . . . . Overload Shots . | . . . . . . Overflow Damage 41 | . 12 6 23 . . Projectiles . | . . . . . . Explosions 41 | . 12 6 23 . . Melee . | . . . . . . Knockbacks . | . . . . . . Impact . | . . . . . . Kinetic . | . . . . . . Secondary . | . . . . . . Self-Inflicted Damage 74 | . 36 38 . . . Shots 3 | . 2 1 . . . Rammed . | . . . . . . Targets Rammed . | . . . . . . Kicked . | . . . . . . Crushed . | . . . . . . Highest Temperature 278 | 90 54 40 24 180 278 Average Temperature 44 | 43 22 11 10 42 114 Received Heat Transfer 323 | . . 54 6 263 . Effects 1 | . . . . . 1 Interference 1 | . . . . . 1 Siege Activations . | . . . . . . Robots Corrupted . | . . . . . . Combat Hostiles . | . . . . . . Parts Fried . | . . . . . . Impact Corruptions . | . . . . . . Robots Melted . | . . . . . . Combat Hostiles . | . . . . . . Parts Melted 1 | . . . . 1 . Heat Transferred 2674 | 375 450 175 570 888 216 Parts Sabotaged . | . . . . . . Parts Stolen . | . . . . . . Parts Stripped . | . . . . . . Power Chain Reactions . | . . . . . . Missiles Intercepted . | . . . . . . Alert | -11 -10 -10 -9 -9 -9 ------- Run | Scr Mat Min Mat Min Exi Peak Influence 499 | 30 392 499 455 178 . Initial 124 | . 19 74 124 103 . Average 194 | 15 267 311 323 53 . Maximum Alert Level 2 | . 1 2 2 . . Low Security (%) 54 | 100 32 17 14 100 . Level 1 35 | . 67 69 41 . . Level 2 9 | . . 13 43 . . Level 3 . | . . . . . . Level 4 . | . . . . . . Level 5 . | . . . . . . High Security . | . . . . . . Max Security . | . . . . . . Squads Dispatched . | . . . . . . Investigation . | . . . . . . Extermination . | . . . . . . Reinforcement . | . . . . . . Assault . | . . . . . . Garrison . | . . . . . . Intercept . | . . . . . . Construction Impeded . | . . . . . . Haulers Reinforced . | . . . . . . Stealth | -11 -10 -10 -9 -9 -9 --------- Run | Scr Mat Min Mat Min Exi Distress Signals 3 | . 3 . . . . Communications Jammed . | . . . . . . Distress Signals . | . . . . . . Times Spotted 59 | . 13 8 17 11 10 Peak Tracking Total 9 | . 8 3 4 3 9 Tactical Retreats 6 | . 1 . . 2 3 Traps | -11 -10 -10 -9 -9 -9 ------- Run | Scr Mat Min Mat Min Exi Traps Triggered . | . . . . . . Indirectly . | . . . . . . Trap Hack Attempts . | . . . . . . Triggered . | . . . . . . Disarmed . | . . . . . . Reprogrammed . | . . . . . . Reused 2 | . . . . . 2 Traps Extracted . | . . . . . . Installed 3 | . . . . . 3 Triggered . | . . . . . . Machines | -11 -10 -10 -9 -9 -9 ---------- Run | Scr Mat Min Mat Min Exi Machines Disabled 31 | . 4 21 2 1 3 Max in Single Turn 1 | . 1 1 1 1 1 Machines Sabotaged . | . . . . . . Garrisons Compromised . | . . . . . . Overloaded Fab Kills . | . . . . . . Fab Network Shutdowns . | . . . . . . Hacking | -11 -10 -10 -9 -9 -9 --------- Run | Scr Mat Min Mat Min Exi Machines Accessed 8 | . 3 . 2 2 1 Terminals 7 | . 3 . 2 2 . Fabricators . | . . . . . . Repair Stations . | . . . . . . Recycling Units . | . . . . . . Scanalyzers . | . . . . . . Garrison Access . | . . . . . . Total Hacks 26 | . 14 . 6 5 1 Successful 16 | . 10 . 4 1 1 Failed 10 | . 4 . 2 4 . Catastrophic 1 | . . . 1 . . Database Lockouts . | . . . . . . Manual 24 | . 12 . 4 4 4 Terminals 25 | . 14 . 6 5 . Fabricators . | . . . . . . Repair Stations . | . . . . . . Recycling Units . | . . . . . . Scanalyzers . | . . . . . . Garrison Access . | . . . . . . Terminal Hacks 7 | . 4 . 1 1 1 Robot Analysis 2 | . 1 . . 1 . Prototype ID Bank 2 | . 1 . 1 . . Locate Traps 2 | . 2 . . . . EX-Prototype ID Bank 1 | . . . . . 1 Fabricator Hacks . | . . . . . . Repair Station Hacks . | . . . . . . Recycling Unit Hacks . | . . . . . . Scanalyzer . | . . . . . . Garrison Access Hacks . | . . . . . . Unauthorized Hacks 9 | . 6 . 3 . . Terminals 9 | . 6 . 3 . . Track 2 | . 1 . 1 . . Assimilate 1 | . 1 . . . . Botnet 4 | . 3 . 1 . . Operators 2 | . 1 . 1 . . Fabricators . | . . . . . . Repair Stations . | . . . . . . Recycling Units . | . . . . . . Scanalyzers . | . . . . . . Garrison Access . | . . . . . . Data Cores Recovered 1 | . . . 1 . . Used . | . . . . . . Hacking Detections 7 | . 3 . 2 2 . Full Trace Events . | . . . . . . Feedback Events . | . . . . . . Feedback Blocked . | . . . . . . Robot Schematics Acquired . | . . . . . . Robots Built . | . . . . . . Matter . | . . . . . . Time . | . . . . . . Total Robot Build Rating . | . . . . . . Part Schematics Acquired . | . . . . . . Parts Built . | . . . . . . Matter . | . . . . . . Time . | . . . . . . Total Part Build Rating . | . . . . . . Parts Repaired . | . . . . . . Time . | . . . . . . Parts Recycled . | . . . . . . Recycled Matter . | . . . . . . Retrieved Matter . | . . . . . . Retrieved Components . | . . . . . . Parts Scanalyzed . | . . . . . . Part Schematics Acquired . | . . . . . . Parts Damaged . | . . . . . . Bothacking | -11 -10 -10 -9 -9 -9 ------------ Run | Scr Mat Min Mat Min Exi Used RIF Installer . | . . . . . . Robots Hacked 4 | . . . . . 4 Non-combat 3 | . . . . . 3 Combat 1 | . . . . . 1 Robot Hacks Applied 4 | . . . . . 4 parse_system 4 | . . . . . 4 Relay Couplers Released . | . . . . . . Robots Rewired . | . . . . . . Allies Hacked . | . . . . . . Hacks Repelled . | . . . . . . Allies | -11 -10 -10 -9 -9 -9 -------- Run | Scr Mat Min Mat Min Exi Total Allies 5 | . . . . 5 . Largest Group 5 | . . . . 5 4 Highest-Rated Group 84 | . . . . 84 71 Highest-Rated Ally 31 | . . . . 31 31 Total Orders 4 | . . . . . 4 STAY 4 | . . . . . 4 Ally Attacks 60 | . . . . 7 53 Total Damage 1981 | . . . . 105 1876 Kills 14 | . . . . 2 12 Allies Corrupted . | . . . . . . Allies Melted . | . . . . . . Turrets Deployed 3 | . . . . . 3 Intel | -11 -10 -10 -9 -9 -9 ------- Run | Scr Mat Min Mat Min Exi Robot Analysis Total 2 | . 1 . . 1 . Derelict Logs Recovered 3 | . . 1 . 2 . Drone Launches . | . . . . . . Drone Recoveries . | . . . . . . Exploration | -11 -10 -10 -9 -9 -9 ------------- Run | Scr Mat Min Mat Min Exi Turns Passed 4903 | 78 488 1079 460 1465 1333 Spaces Moved 2966 | 28 322 610 273 917 816 Core . | . . . . . . Treads . | . . . . . . Legs 2966 | 28 322 610 273 917 816 Wheels . | . . . . . . Hover . | . . . . . . Flight . | . . . . . . Fastest Speed 120 | 120 120 150 120 120 120 Average Speed 140 | 120 121 150 128 140 146 Slowest Speed 210 | 120 150 150 150 210 150 Overloaded Moves . | . . . . . . Propulsion Burnouts . | . . . . . . Robots Hopped 2 | . . . . . 2 Cave-ins Triggered . | . . . . . . Exploration Rate (%) 58 | 3 35 97 28 99 87 Regions Visited 5 Branch Regions 3 Pre-discovered Areas 3 | . . . . 3 . Known Exits Taken . | . . . . . . Unknown Exits Taken 5 | 1 1 1 1 1 . Scrap Searched 1 | . . . . 1 . Spaces Dug . | . . . . . . Terrain Destroyed 111 | . 44 47 19 . 1 Melee . | . . . . . . Projectile 3 | . . 2 . . 1 AOE 108 | . 44 45 19 . . Terrain Rammed . | . . . . . . Walls Destroyed . | . . . . . . Machines Disabled . | . . . . . . Actions | -11 -10 -10 -9 -9 -9 --------- Run | Scr Mat Min Mat Min Exi Total 3346 | 55 375 702 328 1001 885 Wait 29 | 13 . 4 . 12 . Move 2957 | 27 321 609 272 916 812 Hop 2 | . . . . . 2 Pick Up 50 | 3 11 9 8 10 9 Fast Attach 4 | . . . 1 3 . Attach 16 | 1 1 . 3 . 11 Detach . | . . . . . . Swap 37 | . 8 11 5 7 6 Drop 46 | 2 8 14 8 7 7 Fire 198 | 9 26 55 31 46 31 Melee 4 | . . . . . 4 Ram . | . . . . . . Kick . | . . . . . . Crush . | . . . . . . Escape Stasis . | . . . . . . Rewire . | . . . . . . Trap 3 | . . . . . 3 Miscellaneous . | . . . . . . Route ------- -11/Scrapyard -10/Materials -10/Mines (discovered 2 exits: *Mat x2) -9/Materials -9/Mines (discovered 3 exits: [*Mat x2] / *Exi) -9/Exiles History --------- Turn | Location | Event 14 | -11/Scrapyard | Discovered new exit (range 3) 79 | -11/Scrapyard | Entered Materials 277 | -10/Materials | Discovered new exit (range 15) 320 | -10/Materials | Build established: Mutant 567 | -10/Materials | Entered Mines 632 | -10/Mines | Discovered new exit (range 8) 641 | -10/Mines | Received a Rocket Launcher from a helpful Derelict 641 | -10/Mines | Learned Materials security intel 703 | -10/Mines | A weapon hastily lodged in a ceiling crevice suddenly fell to the ground 1150 | -10/Mines | Discovered new exit (range 5) 1646 | -10/Mines | Entered Materials 1646 | -9/Materials | Evolved 2 slots: Propulsion x1, Utility x1 1805 | -9/Materials | Build established: Scavenger-Mutant 2031 | -9/Materials | Discovered new exit (range 13) 2106 | -9/Materials | Entered Mines 2136 | -9/Mines | Assembled infested the area 2292 | -9/Mines | Learned location of Zion (-6) 2298 | -9/Mines | Discovered new exit (range 15) 2532 | -9/Mines | Found a hidden stash of uninstalled traps 2679 | -9/Mines | Learned location of Storage (-8) 2837 | -9/Mines | Deemed a non-threat by the Exiles lab entrance 2837 | -9/Mines | Discovered new exit (range 5) 2868 | -9/Mines | Discovered new exit (range 13) 3119 | -9/Mines | Lost 3 parts (2n1w) 3414 | -9/Mines | Assisted by bots powering up and referring to "LRC-V3" 3571 | -9/Mines | Entered Exiles 3571 | -9/Exiles | Accompanied by 4 allies 3601 | -9/Exiles | Led the pair of lost Derelicts to a safe place 3609 | -9/Exiles | Met 8R-AWN 3638 | -9/Exiles | Met EX-HEX 3758 | -9/Exiles | Met EX-DEC 3816 | -9/Exiles | Met EX-BIN 4050 | -9/Exiles | Aligned with FarCom system 4052 | -9/Exiles | Given EX-Vault access code 4086 | -9/Exiles | Opened EX-Vault 4094 | -9/Exiles | Found Deploy-a-Sentry 4096 | -9/Exiles | Found Deploy-a-Sentry 4099 | -9/Exiles | Found Deploy-a-Sentry 4133 | -9/Exiles | Warned to stay clear of 0b10 Research branches 4264 | -9/Exiles | DAS Turret deployed 4436 | -9/Exiles | Visited The Gauntlet 4492 | -9/Exiles | DAS Turret deployed 4648 | -9/Exiles | Attacked by the Exiles 4670 | -9/Exiles | DAS Turret deployed 4714 | -9/Exiles | Core integrity fell below 50% 4763 | -9/Exiles | Allies destroyed EX-DEC 4769 | -9/Exiles | Destroyed 8R-AWN 4778 | -9/Exiles | Lost 10 parts (1p3n1u5w) 4833 | -9/Exiles | Allies destroyed EX-BIN 4887 | -9/Exiles | Core integrity fell below 20% 4904 | -9/Exiles | Destroyed by DAS Turret with DAS Cannon Last Messages --------------- 04768_ HV Slug penetrates Wall. 04768_ Penetrated by HV Slug. 04768_ HV Slug penetrates Wall. 04769_ 8R-AWN destroyed. 04777_ Acquired 60 matter. 04778_ Acquired 32 matter. 04781_ Acquired Aluminum Leg. 04785_ Acquired Lgt. Nuclear Core. 04798_ Acquired 7 matter. 04833_ EX-BIN: "You can't kill me, my evil twin will get revenge!" 04833_ EX-BIN destroyed. 04843_ Imp. Heat Sink destroyed. 04882_ Acquired 20 matter. 04884_ Knocked back. 04888_ Particle Gun destroyed. 04890_ Aluminum Leg destroyed. 04890_ Hvy. Battle Rifle destroyed. 04896_ Machine disabled. 04898_ Lgt. Nuclear Core destroyed. 04900_ Aluminum Leg destroyed. Map ----- +----------------------------------------------------+ | ????????????????????????????????????"""""?# #? | | ????????????????????????????????????""" ## #? | | ??????????????????????????????????#""X" #? | | ??????????????????????????????????#" #? | | ??????????????????????????????????#" ## #? | | ??????????????????????????????????#""""""?# #? | | ????????????????????????????????????"###??# #? | | ??????????????????????????????????????????# #? | | ??????????????????????????????????????????# #? | | ?????????????????????????????????????????## ## | | ?????????#######?????????????????????????#" | | ##???????#!!! "#?????????????????????????#" | | ""#??????# "#?????????????????????????#" | | ??????# "#?????????????????????????#" | | #????## ""#????????????#####????????#" | | #####" ""#???????????? """#???????#" | | ##" ""?????????????" """#???????## | | #"" #?????????????"" #????????# | | #?????????????"" #????????#" | | ?# ##????????????"" "#????????#" | | ??## "#???????????? ""?????????#" " | | ###" ###???????????" "?????????##" ## | | """" ##??????????# #????????##"" #? | | "###"" ######???### ###?######"" #? | | "#?##" """#####X# #"###""""""" ## | | ##??#" @ """""" " "" # | | """"###???#"# "" """ " | | ####??????#### " | | ?????????????### | | ???????????????### | | ?????????????????## | | ??????????????????## | | ???????????????????##" | | ????????????????????#""" %! """""" | | ???????????????????##" ######""" | | ???????????????????#"" ""##????#####" | | ??????????????????##""" """##?????????## | | ??????????????????#""" """##???????????# | | ??????????????????#""" ""#???????????## | | ??????????????????#"" ########??####" | | ??????????????????#""" ## ####""" | | ??????????????????#"" """" | | ??????????????????##"" | | ???????????????????#"""" | | ???????????????????## | | ????????????????????#" " "" | | ????????????????????#"""" ""## ##"" | | ????????????????????#"" ""#### #### | | ????????????????????#" """"##??# #??? | | ????????????????????#""" """#??## #### | +----------------------------------------------------+ Best States ------------- Heat Dissipation 42 Energy Generation 14 Energy Capacity 250 Matter Stores 300 Matter Capacity 300 Sight Range 16 Terrain Scan Range 16 Terrain Scan Density 10 Core Shielding 20 Evasion (%) 40 Item Schematics ----------------- None Robot Schematics ------------------ None Fabricated ------------ Nothing Alien Tech Used ----------------- None Achievements -------------- None Challenges ------------ None Game ------ Seed DecoderChipChip Manual? 0 Play Time 00:36:50 Cumulative 268.7 hours Start 2021.01.16 @ 14:28:33 End 2021.01.16 @ 15:04:33 Sessions 1 Manual Loads 0 Difficulty Rogue Special Mode None Game No. 83 Rogue 60 Adventurer 23 Explorer 0 Win Type - Total 10 Types 7/0/2/1/0/0/0/0/0 Lore% 88 Gallery% 91 Achievement% 71 Wizard Run 0 Options --------- ASCII 0 Keyboard 0 Movement Mouse Keybinds 0 Fullscreen 1 Font 18/SmallcapsGlow Map View 76x50 Tactical HUD 1 Map Filters NONE Filters NONE Steam 1 RUN: fb0a442a-3e4a-4ae4-b115-1b120319b08d